lending/lending_fUSD_20260110
["ID","MTS","AMOUNT","RATE_DAILY","PERIOD"]
[401266526,1768084246864,-845.30631861,0.00022,4]
[401266527,1768084246878,-101541.65423628,0.00022,4]
[401266528,1768084246888,-796.56982681,0.00022,7]
[401266529,1768084246898,-151.0,0.00022,2]
[401266530,1768084246907,-151.0,0.00022,2]
[401266531,1768084246919,-151.0,0.00022,2]
[401266532,1768084246931,-163.53,0.00022,2]
[401266533,1768084246940,-151.0,0.00022,2]
[401266534,1768084246950,-151.0,0.00022,2]
[401266535,1768084246959,-160.0,0.00022,2]
[401266536,1768084246969,-151.0,0.00022,2]
[401266537,1768084246978,-151.0,0.00022,2]
[401266538,1768084246987,-284.91607,0.00022,2]
[401266539,1768084246996,-284.91607,0.00022,2]
[401266540,1768084247006,-284.91607,0.00022,2]
[401266541,1768084247015,-284.91607,0.00022,2]
[401266542,1768084247025,-151.0,0.00022,2]
[401266543,1768084247035,-306.568628,0.00022,2]
[401266544,1768084247044,-151.0,0.00022,2]
[401266545,1768084247053,-306.568628,0.00022,2]
[401266546,1768084247063,-151.0,0.00022,2]
[401266547,1768084247072,-151.0,0.00022,2]
[401266548,1768084247082,-151.0,0.00022,2]
[401266549,1768084247092,-151.0,0.00022,2]
[401266550,1768084247102,-306.568628,0.00022,2]
[401266551,1768084247180,-248.750766,0.00022,2]
[401266552,1768084247191,-151.0,0.00022,2]
[401266553,1768084247204,-663.498204,0.00022,2]
[401266554,1768084247214,-306.568628,0.00022,2]
[401266555,1768084247224,-663.498204,0.00022,2]
[401266556,1768084247234,-500.0,0.00022028,2]
[401266557,1768084247245,-500.0,0.00022028,2]
[401266558,1768084247255,-500.0,0.00022082,2]
[401266559,1768084247265,-197.58766124,0.00022082,2]
[401266560,1768084247276,-800.0,0.00022096,8]
[401266561,1768084247286,-800.0,0.00022096,8]
[401266562,1768084247296,-800.0,0.00022096,8]
[401266563,1768084247307,-800.0,0.00022096,8]
[401266564,1768084247317,-800.0,0.00022096,8]
[401266565,1768084247327,-800.0,0.00022096,8]
[401266566,1768084247337,-800.0,0.00022096,8]
[401266567,1768084247347,-800.0,0.00022096,8]
[401266568,1768084247357,-151.0,0.00022096,2]
[401266569,1768084247367,-151.0,0.00022096,2]
[401266570,1768084247377,-151.0,0.00022096,2]
[401266571,1768084247387,-151.0,0.00022096,2]
[401266572,1768084247397,-493.82815767,0.000221,2]
[401266573,1768084247407,-239.95866114,0.0002211,2]
[401266574,1768084247416,-500.0,0.00022137,2]
[401266575,1768084247427,-1014.0604,0.0002214,2]
[401266576,1768084247437,-550.0,0.00022164,2]
[401266577,1768084247446,-500.0,0.00022192,2]
[401266578,1768084247456,-800.0,0.0002224,8]
[401266579,1768084247466,-800.0,0.0002224,8]
[401266580,1768084247475,-800.0,0.0002224,8]
[401266581,1768084247484,-800.0,0.0002224,8]
[401266582,1768084247494,-800.0,0.0002224,8]
[401266583,1768084247503,-800.0,0.0002224,8]
[401266584,1768084247512,-800.0,0.0002224,8]
[401266585,1768084247521,-800.0,0.0002224,8]
[401266586,1768084247530,-500.0,0.00022247,2]
[401266587,1768084247540,-500.0,0.00022302,2]
[401266588,1768084247550,-574.12855637,0.00022302,2]
[401266589,1768084247559,-151.0,0.00022302,2]
[401266590,1768084247570,-543.85947275,0.00022356,2]
[401266591,1768084247581,-183.83888792,0.00022405,2]
[401266592,1768084247591,-600.0,0.00022491,2]
[401266593,1768084247600,-35448.99585961,0.000225,2]
[401266594,1768084247611,-1000.0,0.000225,7]
[401266595,1768084247621,-500.0,0.00022548,2]
[401266596,1768084247630,-1266.0,0.00022562,2]
[401266597,1768084247640,-505.0,0.00022562,2]
[401266598,1768084247650,-1201.0,0.00022562,2]
[401266599,1768084247659,-914.0,0.00022562,2]
[401266600,1768084247668,-1330.0,0.00022562,2]
[401266601,1768084247677,-614.0,0.00022562,2]
[401266602,1768084247688,-1405.0,0.00022562,2]
[401266603,1768084247699,-255.16097283,0.000226,2]
[401266604,1768084247708,-600.0,0.00022673,2]
[401266605,1768084247718,-522.54046735,0.0002271,2]
[401266606,1768084247729,-370.91372403,0.00022712,2]
[401266607,1768084247740,-1000.0,0.00022794,2]
[401266608,1768084247750,-500.0,0.00022819,2]
[401266609,1768084247759,-176.40443503,0.0002285,2]
[401266610,1768084247769,-151.0,0.0002285,2]
[401266611,1768084247777,-983.5,0.00022859,10]
[401266612,1768084247787,-400.0,0.00023,2]
[401266613,1768084247798,-634.74721497,0.00023,7]
[401266614,1768084247808,-3530.47105408,0.00023,2]
[401266615,1768084247822,-9523.99957396,0.00023,2]
[401266616,1768084247907,-663.498204,0.00018,2]
[401266617,1768084247916,-151.0,0.00022,2]
[401266618,1768084247926,-663.498204,0.00022,2]
[401266619,1768084247935,-3468.0,0.00022562,2]
[401266620,1768084247944,-3761.51145473,0.00023,2]
[401266621,1768084247956,-6351.32468255,0.00023,2]
[401266622,1768084247975,-17247.96177942,0.00023,2]
[401266623,1768084247986,-853.41212699,0.00023,2]
[401266625,1768084746428,776.97,0.00026459,120]
[401266626,1768084861214,-211.54913959,0.0001461,2]
[401266627,1768084861237,-1280.46144705,0.00014645,2]
[401266628,1768084861260,-1200.0,0.0001466,2]
[401266629,1768084861283,-300.0,0.0001466,2]
[401266630,1768084861305,-1000.0,0.00014661,2]
[401266631,1768084861326,-4240.9866,0.00014661,2]
[401266632,1768084861348,-2500.0,0.00014661,2]
[401266633,1768084861372,-3091.597,0.00014661,2]
[401266634,1768084861395,-3016.08962819,0.00014662,2]
[401266635,1768084861418,-176.78370391,0.00014662,2]
[401266636,1768084861441,-176.78370391,0.00014662,2]
[401266637,1768084861463,-388.28037384,0.00014711,2]
[401266638,1768084861490,-155.15572809,0.0001476,2]
[401266639,1768084861515,-503.38539305,0.0001476,2]
[401266640,1768084861539,-500.0,0.0001476,2]
[401266641,1768084861563,-500.93774495,0.0001476,2]
[401266642,1768084861591,-500.0,0.0001476,2]
[401266643,1768084861621,-500.0,0.0001476,2]
[401266644,1768084861649,-500.0,0.0001476,2]
[401266645,1768084861683,-601.77295276,0.0001476,2]
[401266646,1768084861711,-500.0,0.0001476,2]
[401266647,1768084861739,-500.0,0.0001476,2]
[401266648,1768084861765,-500.0,0.0001476,2]
[401266649,1768084861793,-500.0,0.0001476,2]
[401266650,1768084861821,-164757.21658466,0.00014761,2]
[401266651,1768084867530,6254.012358,7.945e-05,2]
[401266652,1768084894364,462.31720972,0.00012951,2]
[401266653,1768084894917,614.41,0.00013699,2]
[401266665,1768085431428,-1398.982,0.00014466,2]
[401266666,1768085431438,-300.0,0.00014466,2]
[401266667,1768085431447,-441.23594566,0.00014466,2]
[401266668,1768085431456,-174.572,0.00014466,2]
[401266669,1768085431466,-188.96599264,0.0001456,2]
[401266670,1768085431475,-676.74145278,0.00014561,2]
[401266671,1768085431486,-130028.10304635,0.00014561,2]
[401266672,1768085431497,-20552.73016157,0.00014561,2]
[401266673,1768085431512,-11260.45347406,0.00014561,2]
[401266674,1768085431523,-9412.5,0.00014561,2]
[401266675,1768085431555,-328.4750411,0.00014561,2]
[401266676,1768085431566,-1046.270152,0.00014561,2]
[401266688,1768085437554,-435.45105748,0.00014561,2]
[401266689,1768085437566,-2840.80853635,0.00014561,2]
[401266690,1768085437609,-576.55739814,0.00014561,2]
[401266917,1768085440091,-470339.10075614,0.00014561,2]
[401266921,1768085440121,-2876.61099989,0.00014561,2]
[401267262,1768085443490,-349626.19792414,0.00014561,2]
[401267264,1768085443506,-1200.0,0.00014659,2]
[401267267,1768085443519,-270.0,0.0001466,2]
[401267269,1768085443532,-300.0,0.0001466,2]
[401267271,1768085443544,-300.0,0.0001466,2]
[401267273,1768085443556,-60054.0902,0.00014661,2]
[401267275,1768085443568,-4345.89064108,0.00014662,2]
[401267277,1768085443581,-2821.12979005,0.00014662,2]
[401267279,1768085443593,-160.02863673,0.00014662,2]
[401267281,1768085443604,-252.00661998,0.00014662,2]
[401267283,1768085443616,-283.74533768,0.00014687,2]
[401267285,1768085443628,-151.0,0.00014753,2]
[401267287,1768085443640,-151.0,0.00014753,2]
[401267289,1768085443652,-151.0,0.00014753,2]
[401267291,1768085443663,-151.0,0.00014753,2]
[401267293,1768085443676,-151.0,0.00014753,2]
[401267295,1768085443689,-1197.7,0.00014762,2]
[401267297,1768085443701,-9999.99,0.00014762,2]
[401267299,1768085443712,-2170.85,0.00014762,2]
[401267301,1768085443725,-150.99,0.00014762,2]
[401267303,1768085443738,-150.99,0.00014762,2]
[401267305,1768085443750,-33580.3823,0.00014762,2]
[401267308,1768085443762,-500.0,0.0001507,2]
[401267310,1768085443774,-4999.99999909,0.000151,2]
[401267312,1768085443786,-500.0,0.00015173,2]
[401267314,1768085443799,-500.0,0.00015173,2]
[401267316,1768085443811,-500.0,0.00015173,2]
[401267318,1768085443823,-500.0,0.00015173,2]
[401267320,1768085443835,-500.0,0.00015173,2]
[401267322,1768085443847,-500.0,0.00015173,2]
[401267324,1768085443861,-500.0,0.00015173,2]
[401267326,1768085443873,-633.20600999,0.00015173,2]
[401267328,1768085443885,-500.0,0.00015173,2]
[401267330,1768085443897,-489.61533507,0.00015173,2]
[401267332,1768085443909,-500.0,0.00015173,2]
[401267334,1768085443921,-500.0,0.00015173,2]
[401267337,1768085443933,-2660.88,0.00015182,2]
[401267339,1768085443945,-203.29687298,0.00015541,2]
[401267340,1768085443956,-2463.25553366,0.0001564,2]
[401267342,1768085443968,-500.0,0.00015721,2]
[401267345,1768085443981,-500.0,0.00015721,2]
[401267347,1768085443992,-500.0,0.00015721,2]
[401267349,1768085444004,-302.24106746,0.00015721,2]
[401267350,1768085444016,-505.81602002,0.00015721,2]
[401267353,1768085444029,-500.0,0.00015721,2]
[401267355,1768085444041,-500.0,0.00015721,2]
[401267356,1768085444052,-379.40330386,0.00015721,2]
[401267359,1768085444064,-500.0,0.00015721,2]
[401267361,1768085444075,-151.0,0.00015786,2]
[401267363,1768085444087,-151.0,0.00015786,2]
[401267365,1768085444099,-157.18356209,0.00015913,2]
[401267367,1768085444110,-300.0,0.00015913,2]
[401267369,1768085444122,-600.0,0.00015913,2]
[401267371,1768085444133,-250.0,0.00015913,2]
[401267373,1768085444146,-300.0,0.00015913,2]
[401267375,1768085444158,-300.0,0.00015913,2]
[401267377,1768085444170,-420.0,0.0001605,2]
[401267380,1768085444182,-1680.0,0.00016125,2]
[401267382,1768085444194,-4345.89064102,0.00016355,2]
[401267384,1768085444206,-2821.12979002,0.00016355,2]
[401267386,1768085444217,-2239.3084942,0.00016611,2]
[401267388,1768085444229,-250.0,0.00017,2]
[401267390,1768085444241,-200.0,0.00017133,2]
[401267392,1768085444253,-21115.18,0.00017509,2]
[401267394,1768085444264,-587.0,0.00017572,2]
[401267397,1768085444276,-500.0,0.00017605,2]
[401267399,1768085444288,-296.44,0.00017606,2]
[401267401,1768085444300,-2351.0,0.00017737,2]
[401267403,1768085444311,-541.82244066,0.00017796,2]
[401267405,1768085444322,-1813.11,0.00018,7]
[401267407,1768085444334,-250.0,0.0001804,2]
[401267409,1768085444347,-4345.89064102,0.00018048,2]
[401267412,1768085444361,-2821.12979002,0.00018048,2]
[401267414,1768085444375,-600.0,0.00018544,2]
[401267416,1768085444386,-500.0,0.00018732,2]
[401267418,1768085444397,-300.0,0.00019,2]
[401267420,1768085444407,-10494.5760138,0.00019,2]
[401267422,1768085444417,-500.0,0.00019172,2]
[401267424,1768085444427,-600.0,0.00019186,2]
[401267463,1768085444836,-600.0,0.00019207,2]
[401267466,1768085444869,-823.0,0.00019239,2]
[401267467,1768085444892,-776.97,0.00019243,2]
[401267468,1768085444907,-500.0,0.00019337,2]
[401267469,1768085444916,-542.92,0.00019348,2]
[401267470,1768085444925,-22047.7,0.00019439,2]
[401267471,1768085444936,-3117.0,0.00019511,2]
[401267472,1768085444945,-600.0,0.00019727,2]
[401267473,1768085444955,-4345.89064102,0.00019741,2]
[401267474,1768085444964,-2821.12979002,0.00019741,2]
[401267475,1768085444973,-500.0,0.00019801,2]
[401267476,1768085444982,-500.0,0.00019863,2]
[401267477,1768085444991,-150.0,0.00019973,2]
[401267479,1768085445001,-1000.0,0.0002,2]
[401267480,1768085445010,-1000.0,0.0002,2]
[401267482,1768085445019,-1000.0,0.0002,2]
[401267484,1768085445028,-150.0,0.0002,20]
[401267486,1768085445037,-500.0,0.00020027,3]
[401267488,1768085445046,-1330.0,0.00020062,2]
[401267490,1768085445056,-3468.0,0.00020062,2]
[401267492,1768085445066,-614.0,0.00020062,2]
[401267493,1768085445075,-1405.0,0.00020062,2]
[401267495,1768085445084,-1266.0,0.00020062,2]
[401267498,1768085445093,-505.0,0.00020062,2]
[401267500,1768085445103,-590.059,0.00020062,2]
[401267502,1768085445112,-150.0,0.00020062,2]
[401267504,1768085445121,-6554.0,0.00020062,2]
[401267505,1768085445130,-2437.0,0.00020062,2]
[401267507,1768085445139,-150.0,0.00020062,2]
[401267510,1768085445150,-4820.0,0.00020062,2]
[401267512,1768085445159,-500.0,0.00020111,2]
[401267514,1768085445168,-500.0,0.000202,2]
[401267516,1768085445177,-500.0,0.00020201,2]
[401267518,1768085445186,-500.0,0.00020202,2]
[401267520,1768085445195,-499.9999,0.00020203,2]
[401267522,1768085445204,-542.92,0.00020315,2]
[401267523,1768085445214,-500.0,0.00020318,2]
[401267525,1768085445223,-500.0,0.00020361,2]
[401267528,1768085445232,-500.0,0.00020478,2]
[401267530,1768085445241,-600.0,0.00020504,2]
[401267531,1768085445251,-250.0,0.00020521,2]
[401267533,1768085445260,-1266.47,0.00020951,2]
[401267535,1768085445270,-9999.99,0.00020951,2]
[401267538,1768085445280,-600.0,0.00020985,2]
[401267540,1768085445289,-500.0,0.00020989,2]
[401267542,1768085445298,-350.0,0.00021,2]
[401267544,1768085445308,-350.0,0.00021068,2]
[401267546,1768085445317,-600.0,0.0002107,2]
[401267548,1768085445326,-542.92,0.00021282,2]
[401267550,1768085445335,-6369.1,0.0002137,2]
[401267552,1768085445345,-500.0,0.0002139,2]
[401267553,1768085445355,-600.0,0.00021413,2]
[401267556,1768085445365,-4345.89064102,0.00021434,2]
[401267558,1768085445375,-2821.12979002,0.00021434,2]
[401267560,1768085445384,-450.0,0.00021616,2]
[401267562,1768085445394,-600.0,0.00021622,2]
[401267564,1768085445403,-776.97,0.00021648,2]
[401267566,1768085445412,-501.05,0.0002188,2]
[401267567,1768085445421,-409.02215808,0.0002188,2]
[401267569,1768085445431,-151.0,0.0002188,2]
[401267572,1768085445441,-1000.0,0.0002188,2]
[401267574,1768085445451,-553.64373807,0.0002188,2]
[401267575,1768085445460,-250.0,0.0002188,2]
[401267578,1768085445471,-998.0,0.0002188,2]
[401267579,1768085445480,-1000.0,0.0002188,2]
[401267581,1768085445489,-250.0,0.0002188,2]
[401267584,1768085445499,-500.0,0.0002188,2]
[401267585,1768085445510,-1000.0,0.0002188,2]
[401267587,1768085445520,-250.0,0.0002188,2]
[401267589,1768085445529,-500.0,0.0002188,2]
[401267591,1768085445538,-250.0,0.0002188,2]
[401267593,1768085445547,-500.0,0.0002188,2]
[401267595,1768085445556,-250.0,0.0002188,2]
[401267597,1768085445566,-500.0,0.0002188,2]
[401267599,1768085445575,-250.0,0.0002188,2]
[401267601,1768085445584,-500.0,0.0002188,2]
[401267603,1768085445594,-250.0,0.0002188,2]
[401267605,1768085445603,-500.0,0.0002188,2]
[401267607,1768085445612,-250.0,0.0002188,2]
[401267609,1768085445621,-500.0,0.0002188,2]
[401267611,1768085445631,-250.0,0.0002188,2]
[401267613,1768085445640,-500.0,0.0002188,2]
[401267615,1768085445649,-500.0,0.0002188,2]
[401267617,1768085445658,-250.0,0.0002188,2]
[401267619,1768085445667,-500.0,0.0002188,2]
[401267621,1768085445676,-250.0,0.0002188,2]
[401267623,1768085445685,-500.0,0.0002188,2]
[401267625,1768085445695,-250.0,0.0002188,2]
[401267627,1768085445704,-250.0,0.0002188,2]
[401267629,1768085445713,-500.0,0.0002188,2]
[401267631,1768085445722,-250.0,0.0002188,2]
[401267633,1768085445731,-250.0,0.0002188,2]
[401267635,1768085445740,-250.0,0.0002188,2]
[401267637,1768085445749,-250.0,0.0002188,2]
[401267639,1768085445758,-250.0,0.0002188,2]
[401267641,1768085445767,-250.0,0.0002188,2]
[401267643,1768085445776,-250.0,0.0002188,2]
[401267645,1768085445785,-250.0,0.0002188,2]
[401267647,1768085445795,-250.0,0.0002188,2]
[401267649,1768085445804,-250.0,0.0002188,2]
[401267651,1768085445813,-250.0,0.0002188,2]
[401267653,1768085445822,-250.0,0.0002188,2]
[401267655,1768085445831,-250.0,0.0002188,2]
[401267657,1768085445840,-250.0,0.0002188,2]
[401267659,1768085445849,-250.0,0.0002188,2]
[401267661,1768085445859,-500.0,0.0002188,2]
[401267663,1768085445868,-250.0,0.0002188,2]
[401267665,1768085445878,-500.0,0.0002188,2]
[401267667,1768085445887,-250.0,0.0002188,2]
[401267669,1768085445896,-204.8394393,0.0002188,2]
[401267671,1768085445906,-500.0,0.0002188,2]
[401267673,1768085445915,-250.0,0.0002188,2]
[401267675,1768085445924,-151.0,0.0002188,2]
[401267676,1768085445935,-500.0,0.0002188,2]
[401267678,1768085445944,-250.0,0.0002188,2]
[401267680,1768085445953,-500.0,0.0002188,2]
[401267682,1768085445964,-250.0,0.0002188,2]
[401267684,1768085445974,-500.0,0.0002188,2]
[401267686,1768085445985,-250.0,0.0002188,2]
[401267688,1768085445995,-500.0,0.0002188,2]
[401267690,1768085446004,-250.0,0.0002188,2]
[401267692,1768085446014,-500.0,0.0002188,2]
[401267694,1768085446023,-250.0,0.0002188,2]
[401267697,1768085446032,-500.0,0.0002188,2]
[401267698,1768085446042,-250.0,0.0002188,2]
[401267700,1768085446051,-500.0,0.0002188,2]
[401267703,1768085446060,-250.0,0.0002188,2]
[401267705,1768085446070,-500.0,0.0002188,2]
[401267707,1768085446079,-250.0,0.0002188,2]
[401267709,1768085446088,-500.0,0.0002188,2]
[401267711,1768085446098,-250.0,0.0002188,2]
[401267713,1768085446107,-2000.0,0.000219,2]
[401267715,1768085446116,-208.55924398,0.00021918,2]
[401267717,1768085446125,-340.85177925,0.00021918,2]
[401267719,1768085446136,-500.0,0.00021945,2]
[401267721,1768085446145,-6923.74,0.00022,7]
[401267723,1768085446154,-541.8224406,0.00022023,2]
[401267725,1768085446163,-600.0,0.00022043,2]
[401267727,1768085446174,-500.0,0.00022082,2]
[401267729,1768085446183,-150.0,0.00022082,2]
[401267731,1768085446192,-150.0,0.00022082,2]
[401267733,1768085446202,-500.0,0.00022137,2]
[401267735,1768085446212,-150.0,0.00022137,2]
[401267737,1768085446222,-501.05,0.00022154,2]
[401267739,1768085446231,-150.0,0.00022192,2]
[401267741,1768085446240,-661.7,0.00022214,2]
[401267743,1768085446249,-661.7,0.00022214,2]
[401267745,1768085446259,-482.91,0.00022214,2]
[401267747,1768085446270,-482.91,0.00022214,2]
[401267749,1768085446279,-482.91,0.00022214,2]
[401267751,1768085446288,-468.87,0.00022214,2]
[401267753,1768085446299,-482.91,0.00022214,2]
[401267755,1768085446310,-482.91,0.00022214,2]
[401267757,1768085446322,-791.93,0.00022214,2]
[401267760,1768085446335,-482.91,0.00022214,2]
[401267762,1768085446347,-482.91,0.00022214,2]
[401267764,1768085446359,-482.91,0.00022214,2]
[401267766,1768085446369,-457.87,0.00022214,2]
[401267768,1768085446379,-150.0,0.00022246,2]
[401267770,1768085446389,-542.92,0.0002225,2]
[401267771,1768085446399,-500.0,0.0002225,2]
[401267774,1768085446408,-150.0,0.00022301,2]
[401267775,1768085446419,-250.0,0.00022356,2]
[401267777,1768085446428,-501.05,0.00022428,2]
[401267779,1768085446438,-206.0503724,0.00022644,2]
[401267781,1768085446447,-500.0,0.00022654,2]
[401267783,1768085446456,-913.2879823,0.00022654,2]
[401267786,1768085446466,-112207.33611968,0.00022654,2]
[401267800,1768085446593,-6450.43938499,0.00022654,2]
[401267804,1768085446616,-373.155,0.00022654,2]
[401268117,1768085473641,3148.91,0.00011584,2]
[401268118,1768085473859,3148.91,0.0001217,2]
[401268119,1768085474341,3148.91,0.00012756,2]
[401268120,1768085474392,553.28,0.00013341,2]
[401268121,1768085474418,2595.63,0.00013341,2]
[401268122,1768085474493,3148.91,0.00013927,2]
[401268123,1768085474701,3148.91,0.00014513,2]
[401268124,1768085496741,163.87946355,0.0001456,2]
[401268125,1768085508259,500.0,0.0001456,2]
[401268126,1768085509349,442.68053645,0.0001456,2]
[401268127,1768085509378,57.31946355,0.0001456,2]
[401268128,1768085510557,500.0,0.0001456,2]
[401268129,1768085510903,455.75255031,0.0001456,2]
[401268130,1768085511836,187.44697681,0.0001456,2]
[401268131,1768085522061,542.77065189,0.0001456,2]
[401268132,1768085573193,500.0,0.0001456,2]
[401268133,1768085573248,500.0,0.0001456,2]
[401268134,1768085573308,500.0,0.0001456,2]
[401268135,1768085573365,500.0,0.0001456,2]
[401268136,1768085573431,500.0,0.0001456,2]
[401268137,1768085573479,5756.72035744,0.00014561,2]
[401268138,1768085573510,10000.01,0.00014561,2]
[401268139,1768085591489,360.93,0.00013699,2]
[401268140,1768085648060,1976.450204,7.945e-05,2]
[401268141,1768086015832,4280.56502844,0.000144,2]
[401268142,1768086115258,2673.55,0.00014359,2]
[401268143,1768086172998,708.51476756,0.00014321,2]
[401268144,1768086173020,291.48523244,0.00014321,2]
[401268145,1768086251780,1500.0,0.00014404,2]
[401268146,1768086262101,178.6554287,0.0001436,2]
[401268147,1768086268231,178.6554287,0.0001441,2]
[401268149,1768086569551,-177.9,0.00014447,2]
[401268150,1768086584533,9644.21,0.00014361,2]
[401268151,1768086584561,10000.01,0.00014361,2]
[401268152,1768086584585,10000.01,0.00014361,2]
[401268153,1768086584611,10000.01,0.00014361,2]
[401268154,1768086584636,10000.01,0.00014361,2]
[401268155,1768086584660,10000.01,0.00014361,2]
[401268156,1768086584685,10000.01,0.00014361,2]
[401268157,1768086585621,-187.85577662,0.00014361,2]
[401268158,1768086586744,-397.32219352,0.00014361,2]
[401268159,1768086588434,-213.20330559,0.00014361,2]
[401268160,1768086592358,-201.20066262,0.00014361,2]
[401268161,1768086594464,-348.59921885,0.00014361,2]
[401268162,1768086597127,-168.00441332,0.00014359,2]
[401268163,1768086597159,-7.30320072,0.00014361,2]
[401268164,1768086599941,-178.6554287,0.00014359,2]
[401268165,1768086601184,-170.20645557,0.0001436,2]
[401268166,1768086603323,-77.79354443,0.0001436,2]
[401268167,1768086603349,-169.11260278,0.0001436,2]
[401268168,1768086608070,-158.90132406,0.0001436,2]
[401268169,1768086609184,-231.82683937,0.00014359,2]
[401268170,1768086609207,-209.27183657,0.0001436,2]
[401268171,1768086616689,-662.71423659,0.0001436,2]
[401268172,1768086616725,-222.11260278,0.00014361,2]
[401268173,1768086629681,-4159.92817119,0.00014361,2]
[401268174,1768086629769,-10000.01,0.00014361,2]
[401268175,1768086629800,-10000.01,0.00014361,2]
[401268176,1768086629816,-10000.01,0.00014361,2]
[401268177,1768086629831,-10000.01,0.00014361,2]
[401268184,1768086631880,-884840.27747089,0.00014361,2]
[401268185,1768086631890,-1000.0,0.00014446,2]
[401268186,1768086631900,-617.0,0.00014459,2]
[401268187,1768086631910,-300.0,0.0001446,2]
[401268188,1768086631920,-195.0,0.0001446,2]
[401268189,1768086631929,-999.0,0.00014493,3]
[401268190,1768086631939,-300.0,0.00014552,2]
[401268193,1768086631948,-500.0,0.00014553,2]
[401268195,1768086631958,-500.0,0.00014553,2]
[401268196,1768086631967,-151.0,0.00014553,2]
[401268197,1768086631976,-151.0,0.00014553,2]
[401268198,1768086631986,-151.0,0.00014553,2]
[401268199,1768086631995,-151.0,0.00014553,2]
[401268200,1768086632004,-151.0,0.00014553,2]
[401268201,1768086632013,-290.63838597,0.00014553,2]
[401268202,1768086632023,-150.0,0.00014557,2]
[401268203,1768086632032,-1195.8,0.00014558,2]
[401268204,1768086632041,-999.99,0.00014558,2]
[401268205,1768086632055,-1212.07,0.00014558,2]
[401268206,1768086632065,-9999.99,0.00014558,2]
[401268207,1768086632074,-150.99,0.00014558,2]
[401268208,1768086632084,-9999.99,0.00014558,2]
[401268209,1768086632093,-9999.99,0.00014558,2]
[401268210,1768086632103,-1800.495,0.00014559,2]
[401268211,1768086632113,-184.75,0.00014559,2]
[401268212,1768086632123,-1360.8,0.00014559,2]
[401268213,1768086632132,-500.0,0.00014561,2]
[401268214,1768086632142,-500.0,0.00014561,2]
[401268215,1768086632151,-500.0,0.00014561,2]
[401268216,1768086632160,-500.0,0.00014561,2]
[401268217,1768086632170,-500.0,0.00014561,2]
[401268218,1768086632179,-649.16,0.00014561,2]
[401268219,1768086632189,-649.16,0.00014561,2]
[401268220,1768086632199,-649.16,0.00014561,2]
[401268221,1768086632209,-649.16,0.00014561,2]
[401268222,1768086632219,-500.0,0.00014561,2]
[401268223,1768086632229,-500.0,0.00014561,2]
[401268224,1768086632240,-500.0,0.00014561,2]
[401268225,1768086632250,-500.0,0.00014561,2]
[401268226,1768086632261,-500.0,0.00014561,2]
[401268227,1768086632270,-500.0,0.00014561,2]
[401268228,1768086632283,-500.0,0.00014561,2]
[401268229,1768086632293,-550.60903699,0.00014561,2]
[401268230,1768086632302,-500.0,0.00014561,2]
[401268231,1768086632312,-510.914429,0.00014561,2]
[401268232,1768086632322,-500.0,0.00014561,2]
[401268233,1768086632333,-500.0,0.00014561,2]